bitfinex/quotes_BTCUSD_20230907
["timestamp","ask_amount","ask_price","bid_price","bid_amount"]
[1694080589708,4.17648411,25772.0,25771.0,0.06247927]
[1694080589973,4.17666411,25772.0,25771.0,0.06247927]
[1694080590168,4.17660411,25772.0,25771.0,0.06247927]
[1694080590464,4.17666411,25772.0,25771.0,0.06247927]
[1694080590607,4.17648411,25772.0,25771.0,0.06247927]
[1694080590818,4.17666411,25772.0,25771.0,0.06247927]
[1694080591034,4.17660411,25772.0,25771.0,0.06247927]
[1694080591277,4.17654411,25772.0,25771.0,0.06247927]
[1694080591434,4.17648411,25772.0,25771.0,0.06247927]
[1694080591839,4.17642411,25772.0,25771.0,0.06247927]
[1694080592247,4.17678411,25772.0,25771.0,0.06247927]
[1694080592656,4.17690411,25772.0,25771.0,0.06247927]
[1694080592863,4.17684411,25772.0,25771.0,0.06247927]
[1694080593057,4.17546411,25772.0,25771.0,0.06247927]
[1694080593263,4.17444411,25772.0,25771.0,0.06247927]
[1694080593466,4.17312411,25772.0,25771.0,0.06247927]
[1694080593685,4.17330411,25772.0,25771.0,0.06247927]
[1694080593888,4.17324411,25772.0,25771.0,0.06247927]
[1694080594133,4.17432411,25772.0,25771.0,0.06247927]
[1694080594283,4.17978411,25772.0,25771.0,0.06247927]
[1694080594482,4.17792411,25772.0,25771.0,0.06247927]
[1694080595057,4.18104411,25772.0,25771.0,0.06247927]
[1694080595250,4.17768411,25772.0,25771.0,0.06247927]
[1694080595452,4.17804411,25772.0,25771.0,0.06247927]
[1694080595658,4.17798411,25772.0,25771.0,0.06247927]
[1694080595861,4.17828411,25772.0,25771.0,0.06247927]
[1694080596106,4.17624411,25772.0,25771.0,0.06247927]
[1694080596288,4.17630411,25772.0,25771.0,0.06247927]
[1694080596482,4.17690411,25772.0,25771.0,0.06247927]
[1694080596744,4.17624411,25772.0,25771.0,0.25247927]
[1694080596922,4.17696411,25772.0,25771.0,0.25247927]
[1694080597129,4.17708411,25772.0,25771.0,0.25247927]
[1694080597356,4.17486411,25772.0,25771.0,0.25247927]
[1694080597577,4.17534411,25772.0,25771.0,0.25247927]
[1694080597701,4.17498411,25772.0,25771.0,0.25247927]
[1694080597902,4.17504411,25772.0,25771.0,0.25247927]
[1694080598161,4.17570411,25772.0,25771.0,0.25247927]
[1694080598373,4.17558411,25772.0,25771.0,0.25247927]
[1694080598580,4.17534411,25772.0,25771.0,0.25247927]
[1694080598987,4.17480411,25772.0,25771.0,0.25247927]
[1694080599209,4.17576411,25772.0,25771.0,0.25247927]
[1694080599388,4.17582411,25772.0,25771.0,0.25247927]
[1694080599591,3.96273413,25772.0,25771.0,0.25247927]
[1694080599820,3.96153413,25772.0,25771.0,0.25247927]
[1694080600003,3.96009413,25772.0,25771.0,0.25247927]
[1694080600210,3.95901413,25772.0,25771.0,0.25247927]
[1694080600385,4.14359261,25772.0,25771.0,0.17247927]
[1694080600591,3.95937413,25772.0,25771.0,0.17247927]
[1694080601170,3.95913413,25772.0,25771.0,0.17247927]
[1694080601600,3.95937413,25772.0,25771.0,0.17247927]
[1694080601827,3.96033413,25772.0,25771.0,0.17247927]
[1694080602057,3.96147413,25772.0,25771.0,0.17247927]
[1694080602262,3.96045413,25772.0,25771.0,0.17247927]
[1694080602532,3.96051413,25772.0,25771.0,0.17247927]
[1694080602734,3.96057413,25772.0,25771.0,0.17247927]
[1694080602939,3.96051413,25772.0,25771.0,0.17247927]
[1694080603265,3.96045413,25772.0,25771.0,0.17247927]
[1694080603469,3.96033413,25772.0,25771.0,0.17247927]
[1694080603680,3.96045413,25772.0,25771.0,0.17247927]
[1694080603883,3.96039413,25772.0,25771.0,0.17247927]
[1694080604019,3.96051413,25772.0,25771.0,0.17247927]
[1694080604223,3.96063413,25772.0,25771.0,0.17247927]
[1694080604443,3.96129413,25772.0,25771.0,0.17247927]
[1694080604649,3.96045413,25772.0,25771.0,0.17247927]
[1694080604848,3.95703413,25772.0,25771.0,0.17247927]
[1694080605057,3.95805413,25772.0,25771.0,0.17247927]
[1694080605261,3.95721413,25772.0,25771.0,0.17247927]
[1694080605457,3.95727413,25772.0,25771.0,0.17247927]
[1694080605662,3.95871413,25772.0,25771.0,0.17247927]
[1694080605878,3.95889413,25772.0,25771.0,0.17247927]
[1694080606105,3.96177413,25772.0,25771.0,0.17247927]
[1694080606324,3.96123413,25772.0,25771.0,0.17247927]
[1694080606602,3.96021513,25772.0,25771.0,0.17247927]
[1694080606806,3.96133874,25772.0,25771.0,0.17247927]
[1694080607008,3.96049874,25772.0,25771.0,0.17247927]
[1694080607204,3.96097874,25772.0,25771.0,0.17247927]
[1694080607459,3.95935874,25772.0,25771.0,0.17247927]
[1694080607848,3.95929874,25772.0,25771.0,0.17247927]
[1694080608257,3.96043874,25772.0,25771.0,0.17247927]
[1694080608459,3.96037874,25772.0,25771.0,0.17247927]
[1694080608706,3.96025874,25772.0,25771.0,0.17247927]
[1694080608880,3.96043874,25772.0,25771.0,0.17247927]
[1694080609186,3.95947874,25772.0,25771.0,0.17247927]
[1694080609393,3.95929874,25772.0,25771.0,0.17247927]
[1694080609530,3.95941874,25772.0,25771.0,0.17247927]
[1694080609934,3.96043874,25772.0,25771.0,0.17247927]
[1694080610161,3.96109874,25772.0,25771.0,0.17247927]
[1694080610343,3.96079874,25772.0,25771.0,0.17247927]
[1694080610540,3.95995874,25772.0,25771.0,0.17247927]
[1694080610890,3.96121874,25772.0,25771.0,0.17247927]
[1694080611106,3.96061874,25772.0,25770.0,0.000236]
[1694080611339,1.19399054,25771.0,25770.0,0.000236]
[1694080611549,3.59628854,25771.0,25770.0,0.000236]
[1694080611717,3.59622854,25771.0,25770.0,0.000236]
[1694080611927,3.59520854,25771.0,25770.0,0.000236]
[1694080612260,3.59598854,25771.0,25770.0,0.000236]
[1694080612478,3.5969918,25771.0,25770.0,0.000236]
[1694080612642,3.5968718,25771.0,25770.0,0.000236]
[1694080612854,3.5977518,25771.0,25770.0,0.011236]
[1694080613003,3.78206902,25771.0,25770.0,0.012236]
[1694080613377,3.78248902,25771.0,25770.0,0.012236]
[1694080613581,3.84436153,25771.0,25770.0,0.011236]
[1694080613791,3.84584153,25771.0,25770.0,0.012236]
[1694080613988,3.84572153,25771.0,25770.0,0.012236]
[1694080614161,3.84626153,25771.0,25770.0,0.012236]
[1694080614367,3.84650153,25771.0,25770.0,0.012236]
[1694080614563,3.84644153,25771.0,25770.0,0.012236]
[1694080614783,3.84620153,25771.0,25770.0,0.012236]
[1694080614992,3.84614153,25771.0,25770.0,0.012236]
[1694080615241,3.84608153,25771.0,25770.0,0.012236]
[1694080615377,3.84356153,25771.0,25770.0,0.012236]
[1694080615583,3.84314153,25771.0,25770.0,0.012236]
[1694080615783,3.84296153,25771.0,25770.0,0.012236]
[1694080616143,3.84284153,25771.0,25770.0,0.012236]
[1694080616342,3.84278153,25771.0,25770.0,0.012236]
[1694080616516,3.84272153,25771.0,25770.0,0.012236]
[1694080616928,3.84194153,25771.0,25770.0,0.012236]
[1694080617127,3.84266153,25771.0,25770.0,0.012236]
[1694080617507,3.84188153,25771.0,25770.0,0.012236]
[1694080617752,3.84200153,25771.0,25770.0,0.012236]
[1694080617943,3.84272153,25771.0,25770.0,0.012236]
[1694080618140,3.84212153,25771.0,25770.0,0.012236]
[1694080618344,4.03117839,25771.0,25770.0,0.012236]
[1694080618547,4.06255839,25771.0,25770.0,0.012236]
[1694080618820,4.06093839,25771.0,25770.0,0.012236]
[1694080619030,4.06069839,25771.0,25770.0,0.012236]
[1694080619199,4.06009839,25771.0,25770.0,0.012236]
[1694080619355,4.06009839,25771.0,25770.0,0.011236]
[1694080619356,4.05909839,25771.0,25770.0,0.011236]
[1694080619556,4.05909839,25771.0,25770.0,0.191236]
[1694080619557,4.05891839,25771.0,25770.0,0.191236]
[1694080619762,4.05985839,25771.0,25770.0,0.192236]
[1694080619945,4.05879839,25771.0,25770.0,0.181236]
[1694080620153,4.05773839,25771.0,25770.0,0.180236]
[1694080620376,4.06667839,25771.0,25770.0,0.180236]
[1694080620587,4.04685839,25771.0,25770.0,0.184236]
[1694080620788,4.04379839,25771.0,25770.0,0.184236]
[1694080621005,4.04313839,25771.0,25770.0,0.181236]
[1694080621213,4.04355839,25771.0,25770.0,0.184236]
[1694080621522,4.04277839,25771.0,25770.0,0.184236]
[1694080621655,4.04253839,25771.0,25770.0,0.184236]
[1694080621852,4.26701059,25771.0,25770.0,0.184236]
[1694080622092,4.26713059,25771.0,25770.0,0.184236]
[1694080622213,4.04205839,25771.0,25770.0,0.184236]
[1694080622419,4.04391839,25771.0,25770.0,0.184236]
[1694080622856,4.04397839,25771.0,25770.0,0.184236]
[1694080623057,4.04409839,25771.0,25770.0,0.184236]
[1694080623268,4.04451839,25771.0,25770.0,0.184236]
[1694080623476,4.23883739,25771.0,25770.0,0.184236]
[1694080623678,4.24183739,25771.0,25770.0,0.184236]
[1694080624089,4.24177739,25771.0,25770.0,0.184236]
[1694080624293,4.24279739,25771.0,25770.0,0.184236]
[1694080624538,4.24663739,25771.0,25770.0,0.184236]
[1694080624744,4.05243839,25771.0,25770.0,0.184236]
[1694080624978,4.05273839,25771.0,25770.0,0.184236]
[1694080625183,4.05303839,25771.0,25770.0,0.184236]
[1694080625388,4.05285839,25771.0,25770.0,0.184236]
[1694080625594,4.06458169,25771.0,25770.0,0.184236]
[1694080625801,4.06452169,25771.0,25770.0,0.184236]
[1694080626013,4.24782082,25771.0,25770.0,0.184236]
[1694080626215,4.24056082,25771.0,25770.0,0.184236]
[1694080626445,4.23780082,25771.0,25770.0,0.184236]
[1694080626656,4.23786082,25771.0,25770.0,0.184236]
[1694080626865,4.23738082,25771.0,25770.0,0.184236]
[1694080627245,4.23744082,25771.0,25770.0,0.184236]
[1694080627452,4.23942082,25771.0,25770.0,0.184236]
[1694080627609,4.24002082,25771.0,25770.0,0.184236]
[1694080627809,4.24230082,25771.0,25770.0,0.184236]
[1694080628026,4.24920082,25771.0,25770.0,0.184236]
[1694080628367,4.24878082,25771.0,25770.0,0.184236]
[1694080628574,4.24746082,25771.0,25770.0,0.184236]
[1694080628771,4.24716082,25771.0,25770.0,0.184236]
[1694080628973,4.24632082,25771.0,25770.0,0.184236]
[1694080629177,3.93156674,25771.0,25770.0,0.184236]
[1694080629410,3.93162674,25771.0,25770.0,0.184236]
[1694080629811,3.93258674,25771.0,25770.0,0.184236]
[1694080629992,3.93222674,25771.0,25770.0,0.184236]
[1694080630299,3.93204674,25771.0,25770.0,0.184236]
[1694080630497,3.93276674,25771.0,25770.0,0.184236]
[1694080630727,3.93234674,25771.0,25770.0,0.184236]
[1694080631139,3.93264674,25771.0,25770.0,0.184236]
[1694080631317,3.93390674,25771.0,25770.0,0.184236]
[1694080631496,3.93618674,25771.0,25770.0,0.184236]
[1694080631720,3.93564674,25771.0,25770.0,0.184236]
[1694080631916,3.93462674,25771.0,25770.0,0.184236]
[1694080632261,3.93372674,25771.0,25770.0,0.184236]
[1694080632372,3.93432674,25771.0,25770.0,0.184236]
[1694080632572,3.93384674,25771.0,25770.0,0.184236]
[1694080632773,3.91530674,25771.0,25770.0,0.184236]
[1694080633029,3.91164674,25771.0,25770.0,0.184236]
[1694080633200,3.91182674,25771.0,25770.0,0.184236]
[1694080633395,3.91428674,25771.0,25770.0,0.184236]
[1694080633603,3.91434674,25771.0,25770.0,0.184236]
[1694080633799,3.91422674,25771.0,25770.0,0.184236]
[1694080634103,3.91392674,25771.0,25770.0,0.184236]
[1694080634306,3.91404674,25771.0,25770.0,0.184236]
[1694080634718,3.91590674,25771.0,25770.0,0.184236]
[1694080634901,3.91602674,25771.0,25770.0,0.184236]
[1694080635075,3.91746674,25771.0,25770.0,0.184236]
[1694080635286,3.91758674,25771.0,25770.0,0.184236]
[1694080635486,3.91710674,25771.0,25770.0,0.184236]
[1694080635807,3.91716674,25771.0,25770.0,0.184236]
[1694080636016,3.91722674,25771.0,25770.0,0.184236]
[1694080636190,3.91734674,25771.0,25770.0,0.184236]
[1694080636600,3.91824674,25771.0,25770.0,0.184236]
[1694080636912,3.91854674,25771.0,25770.0,0.184236]
[1694080637126,3.91830674,25771.0,25770.0,0.184236]
[1694080637281,3.91836674,25771.0,25770.0,0.184236]
[1694080637484,3.91842674,25771.0,25770.0,0.184236]
[1694080637806,3.91962674,25771.0,25770.0,0.184236]
[1694080638012,3.92040674,25771.0,25770.0,0.184236]
[1694080638209,3.92034674,25771.0,25770.0,0.184236]
[1694080638618,3.92040674,25771.0,25770.0,0.184236]
[1694080638820,3.92124674,25771.0,25770.0,0.184236]
[1694080639136,3.92142674,25771.0,25770.0,0.184236]
[1694080639313,3.92148674,25771.0,25770.0,0.184236]
[1694080639542,3.92472674,25771.0,25770.0,0.184236]
[1694080639686,3.92370674,25771.0,25770.0,0.184236]
[1694080639879,3.92502674,25771.0,25770.0,0.184236]
[1694080640488,3.92292674,25771.0,25770.0,0.184236]
[1694080640778,3.92316674,25771.0,25770.0,0.184236]
[1694080640977,3.92304674,25771.0,25770.0,0.184236]
[1694080641204,3.92292674,25771.0,25770.0,0.184236]
[1694080641517,3.92298674,25771.0,25770.0,0.184236]
[1694080641927,3.92310674,25771.0,25770.0,0.184236]
[1694080642141,3.92322674,25771.0,25770.0,0.184236]
[1694080642413,3.92352674,25771.0,25770.0,0.184236]
[1694080642836,3.92358674,25771.0,25770.0,0.184236]
[1694080643264,3.92364674,25771.0,25770.0,0.184236]
[1694080643955,3.92370674,25771.0,25770.0,0.184236]
[1694080644387,3.92496674,25771.0,25770.0,0.184236]
[1694080644591,3.92502674,25771.0,25770.0,0.184236]
[1694080644794,3.92790674,25771.0,25770.0,0.184236]
[1694080645013,3.92982674,25771.0,25770.0,0.184236]
[1694080645271,3.92850674,25771.0,25770.0,0.184236]
[1694080645503,3.93072674,25771.0,25770.0,0.184236]
[1694080645733,3.93156674,25771.0,25770.0,0.184236]
[1694080645943,3.93180674,25771.0,25770.0,0.184236]
[1694080646116,3.93144674,25771.0,25770.0,0.184236]
[1694080646591,3.93156674,25771.0,25770.0,0.184236]
[1694080646875,3.93150674,25771.0,25770.0,0.184236]
[1694080647078,3.92826674,25771.0,25770.0,0.184236]
[1694080647507,3.93150674,25771.0,25770.0,0.184236]
[1694080647711,3.74844761,25771.0,25770.0,0.184236]
[1694080647918,3.74874761,25771.0,25770.0,0.184236]
[1694080648209,3.75090761,25771.0,25770.0,0.184236]
[1694080648418,3.9403006,25771.0,25770.0,0.184236]
[1694080648620,3.9392806,25771.0,25770.0,0.184236]
[1694080649041,4.06470169,25771.0,25770.0,0.184236]
[1694080649259,4.06410169,25771.0,25770.0,0.184236]
[1694080649473,4.07262169,25771.0,25770.0,0.184236]
[1694080649681,4.07250169,25771.0,25770.0,0.184236]
[1694080649897,4.07256169,25771.0,25770.0,0.184236]
[1694080650247,4.07238169,25771.0,25770.0,0.184236]
[1694080650447,4.07250169,25771.0,25770.0,0.184236]
[1694080650798,4.07418169,25771.0,25770.0,0.184236]
[1694080651004,4.07424169,25771.0,25770.0,0.184236]
[1694080651137,4.07364169,25771.0,25770.0,0.184236]
[1694080651352,4.24965525,25771.0,25770.0,0.184236]
[1694080651571,4.24923525,25771.0,25770.0,0.184236]
[1694080651729,4.24821525,25771.0,25770.0,0.184236]
[1694080651930,4.24839525,25771.0,25770.0,0.184236]
[1694080652363,4.24803525,25771.0,25770.0,0.184236]
[1694080652840,4.24797525,25771.0,25770.0,0.184236]
[1694080653056,4.24809525,25771.0,25770.0,0.184236]
[1694080653303,4.24431525,25771.0,25770.0,0.184236]
[1694080653505,4.24425525,25771.0,25770.0,0.184236]
[1694080653884,4.24419525,25771.0,25770.0,0.184236]
[1694080654236,4.24443525,25771.0,25770.0,0.184236]
[1694080654459,4.25343525,25771.0,25770.0,0.184236]
[1694080654663,4.25295525,25771.0,25770.0,0.184236]
[1694080654867,4.25283525,25771.0,25770.0,0.184236]
[1694080655084,4.25295525,25771.0,25770.0,0.184236]
[1694080655264,4.25277525,25771.0,25770.0,0.184236]
[1694080655490,4.25271525,25771.0,25770.0,0.184236]
[1694080655828,4.25247525,25771.0,25770.0,0.184236]
[1694080656036,4.25241525,25771.0,25770.0,0.184236]
[1694080656244,4.25181525,25771.0,25770.0,0.184236]
[1694080656441,4.25175525,25771.0,25770.0,0.184236]
[1694080656554,4.25169525,25771.0,25770.0,0.184236]
[1694080657002,4.25019525,25771.0,25770.0,0.184236]
[1694080657199,4.25043525,25771.0,25770.0,0.184236]
[1694080657433,4.25055525,25771.0,25770.0,0.184236]
[1694080657641,4.25079525,25771.0,25770.0,0.184236]
[1694080657840,4.25073525,25771.0,25770.0,0.184236]
[1694080658111,3.76002761,25771.0,25770.0,0.184236]
[1694080658269,3.75094431,25771.0,25770.0,0.184236]
[1694080658464,3.96234575,25771.0,25770.0,0.184236]
[1694080658702,4.27515956,25771.0,25770.0,0.183236]
[1694080658901,4.27503956,25771.0,25770.0,0.183236]
[1694080659070,4.28053956,25771.0,25770.0,0.183236]
[1694080659269,4.28191956,25771.0,25770.0,0.183236]
[1694080659718,4.28179956,25771.0,25770.0,0.180236]
[1694080659926,4.28179956,25771.0,25770.0,0.181236]
[1694080659927,4.28767956,25771.0,25770.0,0.181236]
[1694080660116,4.07423812,25771.0,25770.0,0.180236]
[1694080660324,4.06699812,25771.0,25770.0,0.180236]
[1694080660523,4.07293812,25771.0,25770.0,0.181236]
[1694080660731,4.07987812,25771.0,25770.0,0.181236]
[1694080661111,4.07639812,25771.0,25770.0,0.181236]
[1694080661318,4.28980476,25771.0,25770.0,0.181236]
[1694080661959,4.29040476,25771.0,25770.0,0.181236]
[1694080662139,4.07537812,25771.0,25770.0,0.181236]
[1694080662344,4.26310983,25771.0,25770.0,0.181236]
[1694080662550,4.26382983,25771.0,25770.0,0.181236]
[1694080662976,4.26406983,25771.0,25770.0,0.181236]
[1694080663221,4.26424983,25771.0,25770.0,0.181236]
[1694080663656,0.04,25767.0,25764.0,0.3471]
[1694080663868,4.30452151,25766.0,25761.0,0.08]
[1694080664074,0.1207,25763.0,25761.0,0.08]
[1694080664277,2.42219592,25762.0,25761.0,0.08]
[1694080665448,2.42324388,25762.0,25761.0,0.08]
[1694080666538,2.42524388,25762.0,25761.0,0.081]
[1694080666981,2.42524388,25762.0,25761.0,0.102]
[1694080667175,2.42524388,25762.0,25761.0,0.081]
[1694080667586,2.42724388,25762.0,25761.0,0.105]
[1694080667814,2.6252145,25762.0,25761.0,0.105]
[1694080670461,2.6252145,25762.0,25761.0,0.13593271]
[1694080674688,2.6252145,25762.0,25761.0,0.31593271]
[1694080674933,1.8488775,25762.0,25761.0,0.31593271]
[1694080675182,1.55772196,25762.0,25761.0,0.31593271]
[1694080676102,1.55772196,25762.0,25761.0,0.13593271]
[1694080684803,1.55772196,25762.0,25761.0,0.05593271]
[1694080701085,1.65090688,25762.0,25761.0,0.05593271]
[1694080704057,0.87456988,25762.0,25761.0,0.05593271]
[1694080707890,0.92251984,25762.0,25761.0,0.05593271]
[1694080708091,1.06229722,25762.0,25761.0,0.05593271]
[1694080709264,0.9691123,25762.0,25761.0,0.05593271]
[1694080712556,0.92116234,25762.0,25761.0,0.05593271]
[1694080715756,0.14482534,25762.0,25761.0,0.05593271]
[1694080724443,0.2380016,25762.0,25761.0,0.05593271]
[1694080725032,0.14482534,25762.0,25761.0,0.05593271]
[1694080725280,0.23800122,25762.0,25761.0,0.05593271]
[1694080727818,0.23800189,25762.0,25761.0,0.05593271]
[1694080729306,0.00504796,25762.0,25761.0,0.05593271]
[1694080729795,0.09822451,25762.0,25761.0,0.05593271]
[1694080738296,0.00504796,25762.0,25761.0,0.05593271]
[1694080741602,1.65089851,25762.0,25761.0,0.05593271]
[1694080743930,1.79064844,25762.0,25761.0,0.05593271]
[1694080744132,1.69749934,25762.0,25761.0,0.05593271]
[1694080747840,0.92116234,25762.0,25761.0,0.05593271]
[1694080748046,1.0143026,25762.0,25761.0,0.05593271]
[1694080749108,0.92116234,25762.0,25761.0,0.05593271]
[1694080749517,1.0142984,25762.0,25761.0,0.05593271]
[1694080749951,1.01429843,25762.0,25761.0,0.05593271]
[1694080750984,0.23796143,25762.0,25761.0,0.05593271]
[1694080751509,0.37904578,25762.0,25761.0,0.05593271]
[1694080752292,1.15538278,25762.0,25761.0,0.05593271]
[1694080752489,2.05241978,25762.0,25761.0,0.05593271]
[1694080753332,2.05041978,25762.0,25761.0,0.03193271]
[1694080753533,2.04841978,25762.0,25761.0,0.03093271]
[1694080753740,2.05341978,25762.0,25761.0,0.05593271]
[1694080754430,2.05141978,25762.0,25761.0,0.03193271]
[1694080754793,2.05041978,25762.0,25761.0,0.05493271]
[1694080756171,2.05341978,25762.0,25761.0,0.05593271]
[1694080757677,1.27708278,25762.0,25761.0,0.05593271]
[1694080758231,1.13599843,25762.0,25761.0,0.05593271]
[1694080758840,0.35966143,25762.0,25761.0,0.05593271]
[1694080763200,0.23896143,25762.0,25761.0,0.05593271]
[1694080767440,0.09918405,25762.0,25761.0,0.05593271]
[1694080768766,0.23896143,25762.0,25761.0,0.05593271]
[1694080773080,1.01529843,25762.0,25761.0,0.05593271]
[1694080773741,1.79163543,25762.0,25761.0,0.05593271]
[1694080774395,1.88486918,25762.0,25761.0,0.05593271]
[1694080774608,1.30880761,25762.0,25761.0,0.05593271]
[1694080775876,3.54189121,25762.0,25761.0,0.05593271]
[1694080776096,3.77485352,25762.0,25761.0,0.05593271]
[1694080776516,3.54189121,25762.0,25761.0,0.05593271]
[1694080776943,3.53889121,25762.0,25761.0,0.05493271]
[1694080777158,3.53689121,25762.0,25761.0,0.03093271]
[1694080777372,3.54089121,25762.0,25761.0,0.05393271]
[1694080777584,3.54089121,25762.0,25761.0,0.05466844]
[1694080780790,3.3076795,25762.0,25761.0,0.05466844]
[1694080780932,3.02777407,25762.0,25761.0,0.05466844]
[1694080781564,0.9677548,25762.0,25761.0,0.05466844]
[1694080781771,0.92101054,25762.0,25761.0,0.05466844]
[1694080784478,0.14467354,25762.0,25761.0,0.05466844]
[1694080789485,0.33104338,25762.0,25761.0,0.05466844]
[1694080790770,1.10738038,25762.0,25761.0,0.05466844]
[1694080790993,1.01411321,25762.0,25761.0,0.05466844]
[1694080791409,1.79045021,25762.0,25761.0,0.05466844]
[1694080793105,1.55772196,25762.0,25761.0,0.05466844]
[1694080793318,1.79047829,25762.0,25761.0,0.05466844]
[1694080795131,0.23780429,25762.0,25761.0,0.17536844]
[1694080795328,0.00504796,25762.0,25761.0,0.17536844]
[1694080795682,0.00504796,25762.0,25761.0,0.58346844]
[1694080801198,0.00504796,25762.0,25761.0,3.39921471]
[1694080801406,0.00414634,25762.0,25761.0,3.39921471]
[1694080801851,0.00414634,25762.0,25761.0,3.72712066]
[1694080802072,0.00414634,25762.0,25761.0,5.72124639]
[1694080802287,0.00414634,25762.0,25761.0,5.74872384]
[1694080802288,0.00214634,25762.0,25761.0,5.74872384]
[1694080802498,0.00214634,25762.0,25761.0,5.55692384]
[1694080802721,0.00414634,25762.0,25761.0,5.43622678]
[1694080803184,0.00214634,25762.0,25761.0,5.41722678]
[1694080803448,0.00214634,25762.0,25761.0,5.41422678]
[1694080803704,0.00414634,25762.0,25761.0,5.39135487]
[1694080803946,0.00214634,25762.0,25761.0,4.7842881]
[1694080804199,0.00414634,25762.0,25761.0,4.8082881]
[1694080804444,0.00414634,25762.0,25761.0,4.66866432]
[1694080805004,0.00414634,25762.0,25761.0,4.64966432]
[1694080805005,0.00214634,25762.0,25761.0,4.64966432]
[1694080805281,0.00414634,25762.0,25761.0,4.66866432]
[1694080805952,0.00414634,25762.0,25761.0,4.57558171]
[1694080806626,0.00414634,25762.0,25761.0,4.66866432]
[1694080807064,0.00414634,25762.0,25761.0,4.69166432]
[1694080807699,0.00414634,25762.0,25761.0,4.66866432]
[1694080809525,0.00414634,25762.0,25761.0,4.8082881]
[1694080810129,0.00414634,25762.0,25761.0,5.26733773]
[1694080810567,0.00414634,25762.0,25761.0,5.17425512]
[1694080811188,0.00414634,25762.0,25761.0,5.20594201]
[1694080813744,0.00414634,25762.0,25761.0,5.3924377]
[1694080815623,0.00414634,25762.0,25761.0,5.25281392]
[1694080815879,0.00414634,25762.0,25761.0,5.39215009]
[1694080816110,0.00414634,25762.0,25761.0,5.25281392]
[1694080820256,0.1527,25769.0,25765.0,0.02]
[1694080820495,0.1527,25769.0,25768.0,0.5288]
[1694080820701,1.559854,25772.0,25768.0,0.68345811]
[1694080820907,2.40078149,25772.0,25769.0,0.15465811]
[1694080821116,2.55738149,25772.0,25769.0,0.15465811]
[1694080821326,2.34978149,25772.0,25769.0,0.15465811]
[1694080821527,0.002,25769.0,25768.0,0.5288]
[1694080821737,0.002,25769.0,25768.0,0.5298]
[1694080821937,2.34978149,25772.0,25768.0,0.5298]
[1694080822344,0.2109875,25771.0,25768.0,0.5298]
[1694080822967,0.2109875,25771.0,25769.0,0.1207]
[1694080823172,0.0007248,25770.0,25769.0,0.1207]
[1694080824322,0.0007248,25770.0,25769.0,0.1217]
[1694080824570,0.0007248,25770.0,25769.0,0.1207]
[1694080824808,0.0027248,25770.0,25769.0,0.1397]
[1694080825959,0.0027248,25770.0,25769.0,0.1567]
[1694080825960,0.0047248,25770.0,25769.0,0.1567]
[1694080833121,0.0047248,25770.0,25769.0,0.036]
[1694080835538,0.0047248,25770.0,25769.0,0.2301]
[1694080836749,0.0047248,25770.0,25769.0,0.25975093]
[1694080843613,2.71965807,25770.0,25769.0,0.25975093]
[1694080843823,3.08695456,25770.0,25769.0,0.25975093]
[1694080844252,3.08695456,25770.0,25769.0,0.2301]
[1694080844458,3.08695456,25770.0,25769.0,0.26407741]
[1694080844893,3.61645407,25770.0,25769.0,0.2301]
[1694080845107,3.68755407,25770.0,25769.0,0.26407741]
[1694080845310,3.68857407,25770.0,25769.0,0.26407741]
[1694080845513,3.9203104,25770.0,25769.0,0.2301]
[1694080845689,3.9207304,25770.0,25769.0,0.2301]
[1694080845900,3.9207904,25770.0,25769.0,0.2301]
[1694080846126,4.132739,25770.0,25769.0,0.2301]
[1694080846315,4.132319,25770.0,25769.0,0.2301]
[1694080846522,4.03861647,25770.0,25769.0,0.2301]
[1694080846727,4.12873885,25770.0,25769.0,0.2111]
[1694080846932,4.12919885,25770.0,25769.0,0.2211]
[1694080847184,4.12889885,25770.0,25769.0,0.2211]
[1694080847444,4.12451903,25770.0,25769.0,0.1941]
[1694080847713,3.96441647,25770.0,25769.0,0.1951]
[1694080847949,3.96541647,25770.0,25769.0,0.2041]
[1694080848175,3.96441647,25770.0,25769.0,0.1951]
[1694080848624,4.53826681,25770.0,25769.0,0.1951]
[1694080848840,4.35206174,25770.0,25769.0,0.1951]
[1694080849250,4.15162154,25770.0,25769.0,0.1951]
[1694080849480,3.96541647,25770.0,25769.0,0.1951]
[1694080849689,4.01196774,25770.0,25769.0,0.1951]
[1694080850574,4.24472407,25770.0,25769.0,0.1951]
[1694080851530,4.058519,25770.0,25769.0,0.1951]
[1694080854624,3.82576267,25770.0,25769.0,0.1951]
[1694080858414,3.8574798,25770.0,25769.0,0.1951]
[1694080882958,3.70506267,25770.0,25769.0,0.1951]
[1694080883605,3.70506267,25770.0,25769.0,0.22497919]
[1694080889588,3.98437027,25770.0,25769.0,0.22497919]
[1694080892270,3.98437027,25770.0,25769.0,0.1951]
[1694080913415,3.95959864,25770.0,25769.0,0.1951]
[1694080914040,3.96030414,25770.0,25769.0,0.1951]
[1694080915108,3.96030414,25770.0,25769.0,0.22551135]
[1694080916801,3.96030414,25770.0,25769.0,0.24806249]
[1694080916802,3.74799554,25770.0,25769.0,0.24806249]
[1694080917039,2.3299935,25770.0,25769.0,0.24806249]
[1694080917240,2.3299935,25770.0,25769.0,0.21765114]
[1694080917707,2.3299935,25770.0,25769.0,0.2254295]
[1694080920065,2.3299935,25770.0,25769.0,0.1951]
[1694080921095,2.3299935,25770.0,25769.0,0.22533772]
[1694080921301,2.57481831,25770.0,25769.0,0.22533772]
[1694080936809,2.57481831,25770.0,25769.0,0.1951]
[1694080970252,3.74811645,25770.0,25769.0,0.1951]
[1694080974116,3.36147118,25770.0,25769.0,0.1951]
[1694080976372,2.89733877,25770.0,25769.0,0.1951]
[1694080976575,3.28661877,25770.0,25769.0,0.1951]
[1694080976799,3.28127877,25770.0,25769.0,0.1951]
[1694080977004,3.28463877,25770.0,25769.0,0.1951]
[1694080977202,3.28075877,25770.0,25769.0,0.1951]
[1694080977404,3.28075877,25770.0,25769.0,0.1941]
[1694080977560,3.30295877,25770.0,25769.0,0.1961]
[1694080977762,3.30295877,25770.0,25769.0,0.1981]
[1694080977763,3.32677877,25770.0,25769.0,0.1981]
[1694080977978,3.32671877,25770.0,25769.0,0.1981]
[1694080978175,3.71318404,25770.0,25769.0,0.1981]
[1694080978391,3.71264404,25770.0,25769.0,0.1981]
[1694080978592,3.71204404,25770.0,25769.0,0.1981]
[1694080978802,3.68768404,25770.0,25769.0,0.1961]
[1694080979080,3.87598564,25770.0,25769.0,0.1961]
[1694080979297,3.87598564,25770.0,25769.0,0.1981]
[1694080979298,3.89668564,25770.0,25769.0,0.1981]
[1694080979503,3.89656564,25770.0,25769.0,0.1981]